[Event "Early-Titled-Tuesday-Blitz-April-02-2024"]
[Site "Chess.com"]
[Date "2024.04.02"]
[Round "2"]
[White "KarolKacprzak"]
[Black "Macron20hTF1"]
[Result "1/2-1/2"]
[WhiteElo "2738"]
[BlackElo "2566"]
[TimeControl "180+1"]
[EndTime "8:18:55 PDT"]
[Termination "Game drawn by repetition"]

1. e4 {[%clk 0:03:00.9]} 1... e6 {[%clk 0:02:59.8]} 2. d4 {[%clk 0:03:00.7]}
2... d5 {[%clk 0:03:00.7]} 3. e5 {[%clk 0:03:01.3]} 3... c5 {[%clk 0:03:00.9]}
4. c3 {[%clk 0:03:02.1]} 4... Nc6 {[%clk 0:03:01.3]} 5. Nf3 {[%clk 0:03:02.5]}
5... Nge7 {[%clk 0:02:58.3]} 6. Na3 {[%clk 0:02:54.6]} 6... Nf5 {[%clk 0:02:57]}
7. Nc2 {[%clk 0:02:54.4]} 7... Qa5 {[%clk 0:02:57]} 8. Bd3 {[%clk 0:02:41.4]}
8... Nfxd4 {[%clk 0:02:56.4]} 9. Nfxd4 {[%clk 0:02:22.8]} 9... Nxd4 {[%clk
0:02:56.4]} 10. O-O {[%clk 0:02:15.1]} 10... Nxc2 {[%clk 0:02:46.1]} 11. Bxc2
{[%clk 0:02:16]} 11... g6 {[%clk 0:02:35.9]} 12. Bg5 {[%clk 0:02:00]} 12... Bg7
{[%clk 0:02:32.9]} 13. Qf3 {[%clk 0:01:55.3]} 13... O-O {[%clk 0:02:31.3]} 14.
Bf6 {[%clk 0:01:51.5]} 14... Bd7 {[%clk 0:02:15.1]} 15. Rfe1 {[%clk 0:01:43.3]}
15... Bc6 {[%clk 0:02:12.7]} 16. Qf4 {[%clk 0:01:31]} 16... Qc7 {[%clk
0:02:00.3]} 17. Bxg7 {[%clk 0:01:11.9]} 17... Kxg7 {[%clk 0:02:00.2]} 18. Re3
{[%clk 0:01:12.8]} 18... Qe7 {[%clk 0:01:45.2]} 19. Rh3 {[%clk 0:01:03.3]} 19...
f5 {[%clk 0:01:45.4]} 20. exf6+ {[%clk 0:00:40.5]} 20... Rxf6 {[%clk 0:01:45.5]}
21. Qe5 {[%clk 0:00:41.4]} 21... Kg8 {[%clk 0:01:36.6]} 22. Re3 {[%clk
0:00:41.9]} 22... Raf8 {[%clk 0:01:35.2]} 23. f3 {[%clk 0:00:42.5]} 23... Qd8
{[%clk 0:01:16.1]} 24. Rae1 {[%clk 0:00:39.9]} 24... d4 {[%clk 0:01:06.6]} 25.
Rd3 {[%clk 0:00:33]} 25... Bd5 {[%clk 0:00:34.1]} 26. cxd4 {[%clk 0:00:27.6]}
26... c4 {[%clk 0:00:34.3]} 27. Rde3 {[%clk 0:00:21.2]} 27... b5 {[%clk
0:00:34.6]} 28. Be4 {[%clk 0:00:18.8]} 28... Bxe4 {[%clk 0:00:31.4]} 29. Rxe4
{[%clk 0:00:19.7]} 29... a6 {[%clk 0:00:25.6]} 30. Qc5 {[%clk 0:00:17.4]} 30...
Qd7 {[%clk 0:00:12.7]} 31. Qb6 {[%clk 0:00:13.8]} 31... e5 {[%clk 0:00:06.3]}
32. Qc5 {[%clk 0:00:14.3]} 32... exd4 {[%clk 0:00:05.9]} 33. Rxd4 {[%clk
0:00:15.2]} 33... Qc8 {[%clk 0:00:04.7]} 34. Qxc8 {[%clk 0:00:08.2]} 34... Rxc8
{[%clk 0:00:05.6]} 35. Re7 {[%clk 0:00:08.5]} 35... Rf7 {[%clk 0:00:05.5]} 36.
Re6 {[%clk 0:00:08.8]} 36... Rfc7 {[%clk 0:00:05.1]} 37. Rxa6 {[%clk 0:00:08.3]}
37... b4 {[%clk 0:00:05.8]} 38. Rd1 {[%clk 0:00:05.7]} 38... c3 {[%clk
0:00:06.7]} 39. bxc3 {[%clk 0:00:06.1]} 39... bxc3 {[%clk 0:00:07.4]} 40. Rc1
{[%clk 0:00:05.4]} 40... c2 {[%clk 0:00:08]} 41. Re6 {[%clk 0:00:04.9]} 41...
Rd8 {[%clk 0:00:07.8]} 42. Kf2 {[%clk 0:00:04.5]} 42... Rd1 {[%clk 0:00:07.6]}
43. Re1 {[%clk 0:00:05.2]} 43... Rd2+ {[%clk 0:00:07.4]} 44. Kg3 {[%clk
0:00:04.2]} 44... Ra7 {[%clk 0:00:07]} 45. Re8+ {[%clk 0:00:02.4]} 45... Kf7
{[%clk 0:00:06.9]} 46. Rc8 {[%clk 0:00:03.1]} 46... Rxa2 {[%clk 0:00:07]} 47.
Rc3 {[%clk 0:00:03.6]} 47... Rb2 {[%clk 0:00:07.3]} 48. h4 {[%clk 0:00:03.7]}
48... h5 {[%clk 0:00:07.4]} 49. Kh3 {[%clk 0:00:03.9]} 49... Kf6 {[%clk
0:00:07.8]} 50. Rc5 {[%clk 0:00:04.3]} 50... Ke6 {[%clk 0:00:07.5]} 51. Rc3
{[%clk 0:00:03.9]} 51... Kf6 {[%clk 0:00:07.4]} 52. Rc6+ {[%clk 0:00:03.5]}
52... Kf5 {[%clk 0:00:07.5]} 53. Rc8 {[%clk 0:00:02.3]} 53... Kf4 {[%clk
0:00:06.7]} 54. Rc3 {[%clk 0:00:02.2]} 54... Ke5 {[%clk 0:00:06.2]} 55. Rc4
{[%clk 0:00:02.2]} 55... Kd5 {[%clk 0:00:06.6]} 56. Rc8 {[%clk 0:00:01.7]} 56...
Kd4 {[%clk 0:00:07.1]} 57. Rc7 {[%clk 0:00:01.5]} 57... Ke3 {[%clk 0:00:07.3]}
58. Re7+ {[%clk 0:00:01.6]} 58... Kf2 {[%clk 0:00:07.6]} 59. Rc7 {[%clk
0:00:01.9]} 59... Ke2 {[%clk 0:00:05.7]} 60. Re7+ {[%clk 0:00:01.7]} 60... Kf2
{[%clk 0:00:06.3]} 61. Rc7 {[%clk 0:00:02]} 61... Re2 {[%clk 0:00:06.9]} 62. Rc6
{[%clk 0:00:01.8]} 62... Ra2 {[%clk 0:00:07.4]} 63. Rxg6 {[%clk 0:00:01.7]}
63... Rd2 {[%clk 0:00:05.7]} 64. Rc6 {[%clk 0:00:01.3]} 64... Ke3 {[%clk
0:00:06.3]} 65. Re6+ {[%clk 0:00:01.5]} 65... Kf4 {[%clk 0:00:06.8]} 66. Rc6
{[%clk 0:00:02.4]} 66... Ke3 {[%clk 0:00:07.3]} 67. Rc4 {[%clk 0:00:03.1]} 67...
Kd3 {[%clk 0:00:07.6]} 68. Rc6 {[%clk 0:00:03.4]} 68... Ke3 {[%clk 0:00:08]}
1/2-1/2

[Event "Early-Titled-Tuesday-Blitz-April-02-2024"]
[Site "Chess.com"]
[Date "2024.04.02"]
[Round "2"]
[White "Chess4always"]
[Black "JoliyRoger"]
[Result "1/2-1/2"]
[WhiteElo "2015"]
[BlackElo "2417"]
[TimeControl "180+1"]
[EndTime "8:18:55 PDT"]
[Termination "Game drawn by stalemate"]

1. d4 {[%clk 0:03:00.9]} 1... Nf6 {[%clk 0:02:59.2]} 2. Bg5 {[%clk 0:03:00.2]}
2... Ne4 {[%clk 0:02:58.4]} 3. Bf4 {[%clk 0:03:00.4]} 3... d5 {[%clk 0:02:59]}
4. e3 {[%clk 0:03:00.6]} 4... c6 {[%clk 0:02:54.8]} 5. Bd3 {[%clk 0:03:00.8]}
5... Nf6 {[%clk 0:02:47.6]} 6. Nf3 {[%clk 0:03:00.9]} 6... Bg4 {[%clk
0:02:48.1]} 7. h3 {[%clk 0:03:00.5]} 7... Bh5 {[%clk 0:02:48]} 8. O-O {[%clk
0:03:00.2]} 8... Nbd7 {[%clk 0:02:47.8]} 9. c4 {[%clk 0:02:58.3]} 9... Bg6
{[%clk 0:02:47.6]} 10. Nc3 {[%clk 0:02:57.2]} 10... e6 {[%clk 0:02:43.6]} 11. c5
{[%clk 0:02:56.7]} 11... Be7 {[%clk 0:02:36.2]} 12. b4 {[%clk 0:02:56.6]} 12...
b6 {[%clk 0:02:21.7]} 13. a4 {[%clk 0:02:52.7]} 13... O-O {[%clk 0:01:46.5]} 14.
Ne5 {[%clk 0:02:46.8]} 14... Nxe5 {[%clk 0:01:42.7]} 15. Bxe5 {[%clk 0:02:45.3]}
15... Nd7 {[%clk 0:01:42.7]} 16. Bg3 {[%clk 0:02:42.8]} 16... bxc5 {[%clk
0:01:27.4]} 17. bxc5 {[%clk 0:02:34.8]} 17... e5 {[%clk 0:01:23.9]} 18. Bxg6
{[%clk 0:02:29]} 18... hxg6 {[%clk 0:01:14.5]} 19. Bxe5 {[%clk 0:02:25.9]} 19...
Nxe5 {[%clk 0:01:12.9]} 20. dxe5 {[%clk 0:02:26.8]} 20... Bxc5 {[%clk
0:01:13.5]} 21. Qc2 {[%clk 0:02:27.4]} 21... Qe7 {[%clk 0:01:10.6]} 22. Rfc1
{[%clk 0:02:07.9]} 22... Rfc8 {[%clk 0:01:05.5]} 23. Ne2 {[%clk 0:01:59.9]}
23... Bb6 {[%clk 0:01:02.3]} 24. a5 {[%clk 0:01:55.1]} 24... Bd8 {[%clk
0:01:00.7]} 25. f4 {[%clk 0:01:55.7]} 25... Rab8 {[%clk 0:00:38]} 26. a6 {[%clk
0:01:52.4]} 26... c5 {[%clk 0:00:36.8]} 27. Rab1 {[%clk 0:01:51.9]} 27... Bb6
{[%clk 0:00:36.8]} 28. Nc3 {[%clk 0:01:36.8]} 28... Rd8 {[%clk 0:00:36.8]} 29.
Na4 {[%clk 0:01:24.7]} 29... Rdc8 {[%clk 0:00:35]} 30. Nxb6 {[%clk 0:01:23.4]}
30... axb6 {[%clk 0:00:32.9]} 31. Rb5 {[%clk 0:01:22.7]} 31... Qc7 {[%clk
0:00:26]} 32. Rcb1 {[%clk 0:01:22.2]} 32... Rd8 {[%clk 0:00:22.2]} 33. Qa4
{[%clk 0:01:22.2]} 33... d4 {[%clk 0:00:21.2]} 34. exd4 {[%clk 0:01:20.7]} 34...
Rxd4 {[%clk 0:00:20.6]} 35. Qb3 {[%clk 0:01:14]} 35... Rxf4 {[%clk 0:00:18.2]}
36. Rxb6 {[%clk 0:01:14.3]} 36... Rxb6 {[%clk 0:00:16.5]} 37. Qxb6 {[%clk
0:01:15.2]} 37... Qxb6 {[%clk 0:00:16.7]} 38. Rxb6 {[%clk 0:01:14.9]} 38... Ra4
{[%clk 0:00:17.5]} 39. Rc6 {[%clk 0:01:08]} 39... c4 {[%clk 0:00:17.5]} 40. Kh2
{[%clk 0:01:07.7]} 40... Kf8 {[%clk 0:00:16]} 41. Rc8+ {[%clk 0:01:07.5]} 41...
Ke7 {[%clk 0:00:16.6]} 42. Rc7+ {[%clk 0:01:08]} 42... Ke6 {[%clk 0:00:17.2]}
43. a7 {[%clk 0:01:07.4]} 43... c3 {[%clk 0:00:17.7]} 44. Rxc3 {[%clk
0:01:05.6]} 44... Rxa7 {[%clk 0:00:18.2]} 45. Re3 {[%clk 0:01:05]} 45... Ra5
{[%clk 0:00:18.7]} 46. Rb3 {[%clk 0:00:59.6]} 46... Rxe5 {[%clk 0:00:19.2]} 47.
Rb8 {[%clk 0:01:00.5]} 47... Kf6 {[%clk 0:00:18.1]} 48. Rd8 {[%clk 0:01:00.1]}
48... Re6 {[%clk 0:00:18.2]} 49. Rd5 {[%clk 0:01:00]} 49... g5 {[%clk
0:00:18.5]} 50. Kg3 {[%clk 0:01:00.3]} 50... Re3+ {[%clk 0:00:18.4]} 51. Kf2
{[%clk 0:00:59.3]} 51... Re5 {[%clk 0:00:18.6]} 52. Rd7 {[%clk 0:00:59.6]} 52...
Kg6 {[%clk 0:00:18.7]} 53. Rd6+ {[%clk 0:00:59.4]} 53... Re6 {[%clk 0:00:18.4]}
54. Rd8 {[%clk 0:01:00.3]} 54... Rf6+ {[%clk 0:00:18.8]} 55. Kg3 {[%clk
0:01:00.1]} 55... Ra6 {[%clk 0:00:19.7]} 56. Kh2 {[%clk 0:01:00.4]} 56... f6
{[%clk 0:00:20.1]} 57. Rd4 {[%clk 0:01:01]} 57... Ra5 {[%clk 0:00:19]} 58. Kg3
{[%clk 0:01:01.5]} 58... Kf5 {[%clk 0:00:19.3]} 59. Kh2 {[%clk 0:01:02]} 59...
g6 {[%clk 0:00:19.8]} 60. Rb4 {[%clk 0:01:02.4]} 60... Re5 {[%clk 0:00:20.3]}
61. Kg3 {[%clk 0:01:02.8]} 61... Re4 {[%clk 0:00:19.2]} 62. Rb8 {[%clk
0:01:03.4]} 62... Re3+ {[%clk 0:00:19.1]} 63. Kf2 {[%clk 0:01:03.3]} 63... Re5
{[%clk 0:00:18.7]} 64. Rg8 {[%clk 0:01:04.2]} 64... Ra5 {[%clk 0:00:18.1]} 65.
Kg3 {[%clk 0:01:04.7]} 65... Ra3+ {[%clk 0:00:18.1]} 66. Kh2 {[%clk 0:01:05.3]}
66... Ra4 {[%clk 0:00:18.3]} 67. Rf8 {[%clk 0:01:06.2]} 67... g4 {[%clk
0:00:17.1]} 68. Rh8 {[%clk 0:01:07.1]} 68... gxh3 {[%clk 0:00:16.4]} 69. Rxh3
{[%clk 0:01:08]} 69... g5 {[%clk 0:00:16.4]} 70. Rh8 {[%clk 0:01:07.8]} 70...
Kg4 {[%clk 0:00:16.3]} 71. Rf8 {[%clk 0:01:07]} 71... f5 {[%clk 0:00:16.8]} 72.
Rb8 {[%clk 0:01:06.3]} 72... f4 {[%clk 0:00:16.6]} 73. Rb1 {[%clk 0:01:05.3]}
73... Ra2 {[%clk 0:00:16.9]} 74. Rf1 {[%clk 0:01:05]} 74... Re2 {[%clk
0:00:17.1]} 75. Rf3 {[%clk 0:01:05.3]} 75... Kh4 {[%clk 0:00:17.7]} 76. Rh3+
{[%clk 0:01:05.4]} 76... Kg4 {[%clk 0:00:18.3]} 77. Rf3 {[%clk 0:01:06]} 77...
Kf5 {[%clk 0:00:18.9]} 78. Ra3 {[%clk 0:01:05.3]} 78... Rb2 {[%clk 0:00:19.1]}
79. Ra5+ {[%clk 0:01:05.7]} 79... Kg4 {[%clk 0:00:19.6]} 80. Ra3 {[%clk
0:01:06.2]} 80... Rf2 {[%clk 0:00:18]} 81. Rh3 {[%clk 0:01:06.1]} 81... f3
{[%clk 0:00:10.6]} 82. Rg3+ {[%clk 0:01:01.9]} 82... Kf4 {[%clk 0:00:10.5]} 83.
Kh3 {[%clk 0:01:00.6]} 83... Rxg2 {[%clk 0:00:08]} 84. Rxf3+ {[%clk 0:00:50.2]}
84... Kxf3 {[%clk 0:00:06.6]} 1/2-1/2

[Event "Early-Titled-Tuesday-Blitz-April-02-2024"]
[Site "Chess.com"]
[Date "2024.04.02"]
[Round "2"]
[White "slorovel"]
[Black "yosephtaher"]
[Result "0-1"]
[WhiteElo "2627"]
[BlackElo "2942"]
[TimeControl "180+1"]
[EndTime "8:18:57 PDT"]
[Termination "yosephtaher won on time"]

1. e4 {[%clk 0:03:00.9]} 1... c5 {[%clk 0:02:59.3]} 2. Nf3 {[%clk 0:03:00.6]}
2... g6 {[%clk 0:02:59]} 3. c3 {[%clk 0:02:58]} 3... Nf6 {[%clk 0:02:59]} 4. Bd3
{[%clk 0:02:54.6]} 4... Bg7 {[%clk 0:02:58.1]} 5. Bc2 {[%clk 0:02:54.4]} 5... d6
{[%clk 0:02:58]} 6. O-O {[%clk 0:02:54.4]} 6... Bg4 {[%clk 0:02:57.2]} 7. d4
{[%clk 0:02:53]} 7... cxd4 {[%clk 0:02:56.7]} 8. cxd4 {[%clk 0:02:52.6]} 8...
Nc6 {[%clk 0:02:56.7]} 9. Be3 {[%clk 0:02:48.1]} 9... Nd7 {[%clk 0:02:56.3]} 10.
Nc3 {[%clk 0:02:38.4]} 10... Bxf3 {[%clk 0:02:55.1]} 11. gxf3 {[%clk 0:02:38]}
11... e5 {[%clk 0:02:54.8]} 12. dxe5 {[%clk 0:02:27.9]} 12... dxe5 {[%clk
0:02:55.7]} 13. Nd5 {[%clk 0:02:12.1]} 13... O-O {[%clk 0:02:53.4]} 14. Kh1
{[%clk 0:01:59.3]} 14... Nd4 {[%clk 0:02:48.8]} 15. Bxd4 {[%clk 0:01:49.4]}
15... exd4 {[%clk 0:02:49.7]} 16. f4 {[%clk 0:01:49.8]} 16... Nf6 {[%clk
0:02:43.1]} 17. Nxf6+ {[%clk 0:01:48]} 17... Qxf6 {[%clk 0:02:42.9]} 18. Qg4
{[%clk 0:01:35.3]} 18... d3 {[%clk 0:02:33.7]} 19. Bxd3 {[%clk 0:01:33.5]} 19...
Qxb2 {[%clk 0:02:33.9]} 20. e5 {[%clk 0:01:29.8]} 20... Qd4 {[%clk 0:02:31]} 21.
Rad1 {[%clk 0:01:19.6]} 21... Qa4 {[%clk 0:02:24.7]} 22. Qe2 {[%clk 0:01:14.6]}
22... Qxf4 {[%clk 0:02:23.1]} 23. e6 {[%clk 0:01:14.5]} 23... Be5 {[%clk
0:02:19.8]} 24. exf7+ {[%clk 0:01:10.4]} 24... Rxf7 {[%clk 0:02:20.7]} 25. f3
{[%clk 0:01:10.9]} 25... Kg7 {[%clk 0:02:19.7]} 26. Be4 {[%clk 0:01:10.3]} 26...
Rc8 {[%clk 0:02:16.8]} 27. Qd2 {[%clk 0:01:02.8]} 27... Qh4 {[%clk 0:02:12.9]}
28. Qf2 {[%clk 0:01:02.1]} 28... Qf6 {[%clk 0:02:12.4]} 29. Qxa7 {[%clk
0:01:00.2]} 29... b6 {[%clk 0:02:12.8]} 30. Qa6 {[%clk 0:00:58.7]} 30... Rc3
{[%clk 0:02:06.1]} 31. Qe2 {[%clk 0:00:56]} 31... Qf4 {[%clk 0:02:06.3]} 32. Rg1
{[%clk 0:00:49.4]} 32... Re3 {[%clk 0:02:05.2]} 33. Qg2 {[%clk 0:00:48.4]} 33...
Qh6 {[%clk 0:01:37.4]} 34. Rd5 {[%clk 0:00:46]} 34... Bf6 {[%clk 0:01:16.2]} 35.
Rd6 {[%clk 0:00:46]} 35... Rc3 {[%clk 0:01:09.9]} 36. Rxb6 {[%clk 0:00:35.5]}
36... Rc1 {[%clk 0:00:58.4]} 37. Rb1 {[%clk 0:00:31.6]} 37... Rxg1+ {[%clk
0:00:54.9]} 38. Rxg1 {[%clk 0:00:30.5]} 38... Be5 {[%clk 0:00:49.6]} 39. a4
{[%clk 0:00:27.8]} 39... Qf4 {[%clk 0:00:44.5]} 40. Rd1 {[%clk 0:00:23.3]} 40...
Qe3 {[%clk 0:00:38]} 41. Qd2 {[%clk 0:00:20.1]} 41... Rxf3 {[%clk 0:00:30.8]}
42. Qxe3 {[%clk 0:00:19.4]} 42... Rxe3 {[%clk 0:00:31.3]} 43. Bg2 {[%clk
0:00:19.1]} 43... Ra3 {[%clk 0:00:31.4]} 44. Bc6 {[%clk 0:00:16.3]} 44... Ra2
{[%clk 0:00:30.7]} 45. Bg2 {[%clk 0:00:15.6]} 45... Rxa4 {[%clk 0:00:30.4]} 46.
h3 {[%clk 0:00:15.9]} 46... Ra2 {[%clk 0:00:30]} 47. Rf1 {[%clk 0:00:15.3]}
47... h5 {[%clk 0:00:29.1]} 48. Rf3 {[%clk 0:00:15.4]} 48... Kh6 {[%clk
0:00:26.6]} 49. Rf1 {[%clk 0:00:14.6]} 49... Kg5 {[%clk 0:00:27.1]} 50. Rg1
{[%clk 0:00:13.8]} 50... Kh4 {[%clk 0:00:25.9]} 51. Re1 {[%clk 0:00:13.4]} 51...
Bf4 {[%clk 0:00:25.4]} 52. Rf1 {[%clk 0:00:12.9]} 52... g5 {[%clk 0:00:21.1]}
53. Rf3 {[%clk 0:00:12.5]} 53... Be5 {[%clk 0:00:19.1]} 54. Rf1 {[%clk 0:00:10]}
54... Re2 {[%clk 0:00:18.3]} 55. Rd1 {[%clk 0:00:05.7]} 55... Bf4 {[%clk
0:00:16.9]} 56. Rf1 {[%clk 0:00:04.7]} 56... Be3 {[%clk 0:00:17.4]} 57. Rf3
{[%clk 0:00:04]} 57... Bf2 {[%clk 0:00:17.3]} 58. Kh2 {[%clk 0:00:03.1]} 58...
Rd2 {[%clk 0:00:13.6]} 59. Ra3 {[%clk 0:00:02]} 59... Bd4 {[%clk 0:00:12.5]} 60.
Ra4 {[%clk 0:00:02]} 60... g4 {[%clk 0:00:09.7]} 61. hxg4 {[%clk 0:00:02.9]}
61... hxg4 {[%clk 0:00:10.6]} 62. Ra8 {[%clk 0:00:01.8]} 62... Rc2 {[%clk
0:00:05.4]} 0-1

[Event "Early-Titled-Tuesday-Blitz-April-02-2024"]
[Site "Chess.com"]
[Date "2024.04.02"]
[Round "2"]
[White "Kazmin_Semyon"]
[Black "temus_galaktionov"]
[Result "0-1"]
[WhiteElo "2594"]
[BlackElo "2861"]
[TimeControl "180+1"]
[EndTime "8:18:59 PDT"]
[Termination "temus_galaktionov won by resignation"]

1. e4 {[%clk 0:03:00.9]} 1... c6 {[%clk 0:03:00.9]} 2. d4 {[%clk 0:03:00.8]}
2... g6 {[%clk 0:03:01.8]} 3. e5 {[%clk 0:03:01.7]} 3... d6 {[%clk 0:03:00.5]}
4. Nf3 {[%clk 0:02:59.6]} 4... Bg7 {[%clk 0:02:59.1]} 5. Bf4 {[%clk 0:02:57.8]}
5... Bg4 {[%clk 0:02:56.4]} 6. exd6 {[%clk 0:02:54.4]} 6... exd6 {[%clk
0:02:57.3]} 7. Be2 {[%clk 0:02:54.4]} 7... Nf6 {[%clk 0:02:55.2]} 8. h3 {[%clk
0:02:53.4]} 8... Bf5 {[%clk 0:02:54.7]} 9. O-O {[%clk 0:02:52.5]} 9... O-O
{[%clk 0:02:54.3]} 10. Bd3 {[%clk 0:02:47.3]} 10... Bxd3 {[%clk 0:02:41.8]} 11.
Qxd3 {[%clk 0:02:48.2]} 11... Nd5 {[%clk 0:02:29.2]} 12. Bh2 {[%clk 0:02:47.2]}
12... Qf6 {[%clk 0:02:06.6]} 13. Nbd2 {[%clk 0:02:41.9]} 13... Nf4 {[%clk
0:01:44]} 14. Qe3 {[%clk 0:02:25.7]} 14... Bh6 {[%clk 0:01:26.7]} 15. Ne4 {[%clk
0:01:41.7]} 15... Qf5 {[%clk 0:01:26.1]} 16. Nxd6 {[%clk 0:01:34.3]} 16... Qf6
{[%clk 0:01:26]} 17. Qe5 {[%clk 0:01:27]} 17... Nxh3+ {[%clk 0:01:14.2]} 18. Kh1
{[%clk 0:01:03.5]} 18... Qxe5 {[%clk 0:01:13.2]} 19. Nxe5 {[%clk 0:01:04.4]}
19... Nf4 {[%clk 0:01:11.1]} 20. Ng4 {[%clk 0:00:55.8]} 20... Bg5 {[%clk
0:01:07.8]} 21. Ne4 {[%clk 0:00:55.2]} 21... h6 {[%clk 0:01:03.4]} 22. Bxf4
{[%clk 0:00:18.1]} 22... Bxf4 {[%clk 0:01:03.2]} 23. g3 {[%clk 0:00:18.8]} 23...
Bg5 {[%clk 0:00:52.1]} 24. Nxg5 {[%clk 0:00:18.7]} 24... hxg5 {[%clk 0:00:53]}
25. Kg2 {[%clk 0:00:18.4]} 25... Nd7 {[%clk 0:00:52.5]} 26. Rae1 {[%clk
0:00:18.5]} 26... Rfe8 {[%clk 0:00:51.1]} 27. c3 {[%clk 0:00:19]} 27... f6
{[%clk 0:00:48.6]} 28. f4 {[%clk 0:00:18.3]} 28... gxf4 {[%clk 0:00:47.6]} 29.
gxf4 {[%clk 0:00:18.8]} 29... Kf7 {[%clk 0:00:46.4]} 30. Kf3 {[%clk 0:00:19.4]}
30... Rxe1 {[%clk 0:00:46]} 31. Rxe1 {[%clk 0:00:19.9]} 31... Rh8 {[%clk
0:00:46.6]} 32. Kg3 {[%clk 0:00:20.2]} 32... Nb6 {[%clk 0:00:46.3]} 33. b3
{[%clk 0:00:18.2]} 33... Nd5 {[%clk 0:00:43.8]} 34. c4 {[%clk 0:00:18.8]} 34...
Ne7 {[%clk 0:00:44.2]} 35. Ne3 {[%clk 0:00:16.8]} 35... Rd8 {[%clk 0:00:43.3]}
36. Rd1 {[%clk 0:00:16.6]} 36... Ke6 {[%clk 0:00:39.5]} 37. Kf3 {[%clk 0:00:17]}
37... f5 {[%clk 0:00:38.4]} 38. Nc2 {[%clk 0:00:15.8]} 38... Ng8 {[%clk
0:00:36.3]} 39. Re1+ {[%clk 0:00:15.9]} 39... Kf7 {[%clk 0:00:36.4]} 40. Rd1
{[%clk 0:00:08.1]} 40... Nf6 {[%clk 0:00:35.6]} 41. Nb4 {[%clk 0:00:08.3]} 41...
a5 {[%clk 0:00:22.6]} 42. Nd3 {[%clk 0:00:08.5]} 42... Ng4 {[%clk 0:00:20.1]}
43. Ne5+ {[%clk 0:00:06.4]} 43... Nxe5+ {[%clk 0:00:20]} 44. fxe5 {[%clk
0:00:07.3]} 44... g5 {[%clk 0:00:20.5]} 45. d5 {[%clk 0:00:05.9]} 45... cxd5
{[%clk 0:00:21]} 46. cxd5 {[%clk 0:00:06.8]} 46... Rc8 {[%clk 0:00:20.2]} 47.
Rh1 {[%clk 0:00:06.5]} 47... Rc3+ {[%clk 0:00:19.9]} 48. Ke2 {[%clk 0:00:07]}
48... f4 {[%clk 0:00:19.9]} 49. Rh7+ {[%clk 0:00:04.8]} 49... Kg6 {[%clk
0:00:20.2]} 50. Rxb7 {[%clk 0:00:05.5]} 50... Re3+ {[%clk 0:00:20.1]} 51. Kf2
{[%clk 0:00:04.7]} 51... Rxe5 {[%clk 0:00:21]} 52. d6 {[%clk 0:00:05.1]} 52...
Rd5 {[%clk 0:00:21.1]} 53. d7 {[%clk 0:00:04.6]} 53... g4 {[%clk 0:00:20.4]} 54.
Rb6+ {[%clk 0:00:04.5]} 54... Kf7 {[%clk 0:00:20.5]} 55. Rb7 {[%clk 0:00:03.3]}
55... Ke6 {[%clk 0:00:20.8]} 56. Ra7 {[%clk 0:00:03.7]} 56... Rxd7 {[%clk
0:00:20.7]} 57. Rxa5 {[%clk 0:00:04.4]} 57... Rd2+ {[%clk 0:00:20.3]} 58. Ke1
{[%clk 0:00:05.2]} 58... Rg2 {[%clk 0:00:20.1]} 59. Kf1 {[%clk 0:00:04.7]} 59...
f3 {[%clk 0:00:20.5]} 60. a4 {[%clk 0:00:05.4]} 60... Kf6 {[%clk 0:00:19.9]} 61.
Ra8 {[%clk 0:00:04.6]} 61... Rb2 {[%clk 0:00:19.7]} 62. Rg8 {[%clk 0:00:02.7]}
62... Kf5 {[%clk 0:00:20]} 63. a5 {[%clk 0:00:03.5]} 63... Kf4 {[%clk
0:00:19.8]} 64. Rf8+ {[%clk 0:00:03.5]} 64... Kg3 {[%clk 0:00:19.2]} 65. Ke1
{[%clk 0:00:04.1]} 65... Rxb3 {[%clk 0:00:19.6]} 66. a6 {[%clk 0:00:04.2]} 66...
Ra3 {[%clk 0:00:20.1]} 67. Rf6 {[%clk 0:00:04.7]} 67... Kg2 {[%clk 0:00:20.3]}
68. Rg6 {[%clk 0:00:02.2]} 68... g3 {[%clk 0:00:20.5]} 0-1